[Event "*** Titled Tuesday Blitz"]
[Site "Chess.com"]
[Date "2019.12.03"]
[Round "10"]
[White "Eltaj_Safarli"]
[Black "Oleksandr_Bortnyk"]
[Result "1-0"]
[WhiteElo "3009"]
[BlackElo "2955"]
[TimeControl "180+2"]
[EndTime "15:20:03 PST"]
[Termination "Eltaj_Safarli won by checkmate"]

1. e4 {[%clk 0:03:01.9]} 1... Nf6 {[%clk 0:03:00.9]} 2. e5 {[%clk 0:03:03.1]}
2... Nd5 {[%clk 0:03:01.8]} 3. Nc3 {[%clk 0:03:04.4]} 3... Nb6 {[%clk
0:03:02.4]} 4. d4 {[%clk 0:03:02]} 4... d5 {[%clk 0:03:01.8]} 5. Nf3 {[%clk
0:03:01.2]} 5... Bg4 {[%clk 0:02:50.6]} 6. h3 {[%clk 0:03:00.6]} 6... Bxf3
{[%clk 0:02:51.9]} 7. Qxf3 {[%clk 0:03:02.2]} 7... e6 {[%clk 0:02:53.8]} 8. Qg3
{[%clk 0:02:59.5]} 8... a6 {[%clk 0:02:51.3]} 9. Bg5 {[%clk 0:02:58.6]} 9... Qc8
{[%clk 0:02:50.3]} 10. O-O-O {[%clk 0:02:59]} 10... c5 {[%clk 0:02:50.5]} 11.
dxc5 {[%clk 0:02:58.4]} 11... Bxc5 {[%clk 0:02:49.1]} 12. Bd3 {[%clk 0:02:53.7]}
12... Nc6 {[%clk 0:02:43.3]} 13. f4 {[%clk 0:02:52.9]} 13... Nd4 {[%clk
0:01:59.9]} 14. Kb1 {[%clk 0:02:50.3]} 14... Qc6 {[%clk 0:01:56]} 15. Ne2 {[%clk
0:02:35.5]} 15... Na4 {[%clk 0:01:30.1]} 16. f5 {[%clk 0:02:32.9]} 16... Qb6
{[%clk 0:00:57.7]} 17. b3 {[%clk 0:02:32.5]} 17... exf5 {[%clk 0:00:45.9]} 18.
Rhf1 {[%clk 0:02:21]} 18... Rc8 {[%clk 0:00:41.3]} 19. Bd2 {[%clk 0:01:55.1]}
19... g6 {[%clk 0:00:36.7]} 20. Nf4 {[%clk 0:01:53.4]} 20... Rd8 {[%clk
0:00:26.8]} 21. e6 {[%clk 0:01:47.9]} 21... Nxe6 {[%clk 0:00:22.6]} 22. Nxe6
{[%clk 0:01:35.8]} 22... fxe6 {[%clk 0:00:24.5]} 23. Qe1 {[%clk 0:01:23]} 23...
Qc6 {[%clk 0:00:03.9]} 24. g4 {[%clk 0:01:20]} 24... O-O {[%clk 0:00:04.1]} 25.
gxf5 {[%clk 0:01:17.4]} 25... exf5 {[%clk 0:00:04.9]} 26. bxa4 {[%clk
0:01:16.6]} 26... Qb6+ {[%clk 0:00:05.9]} 27. Ka1 {[%clk 0:01:16]} 27... Rfe8
{[%clk 0:00:06.8]} 28. Qg3 {[%clk 0:01:14.7]} 28... Bd4+ {[%clk 0:00:08.2]} 29.
c3 {[%clk 0:01:14.8]} 29... Re3 {[%clk 0:00:09.9]} 30. Rf3 {[%clk 0:01:10.1]}
30... Rde8 {[%clk 0:00:10.9]} 31. Rb1 {[%clk 0:01:00]} 31... Qc5 {[%clk
0:00:09.9]} 32. Rb3 {[%clk 0:00:49]} 32... Rxf3 {[%clk 0:00:05.5]} 33. Qxf3
{[%clk 0:00:50.9]} 33... Bf6 {[%clk 0:00:03.7]} 34. Kb1 {[%clk 0:00:50.3]} 34...
Re7 {[%clk 0:00:04.1]} 35. Kc2 {[%clk 0:00:50.6]} 35... Kg7 {[%clk 0:00:04.8]}
36. h4 {[%clk 0:00:48.9]} 36... d4 {[%clk 0:00:04.3]} 37. Rxb7 {[%clk
0:00:46.3]} 37... dxc3 {[%clk 0:00:04.8]} 38. Bg5 {[%clk 0:00:46.4]} 38... Bxg5
{[%clk 0:00:05.1]} 39. hxg5 {[%clk 0:00:47.1]} 39... h6 {[%clk 0:00:05]} 40.
Rxe7+ {[%clk 0:00:42.4]} 40... Qxe7 {[%clk 0:00:06.9]} 41. Bxa6 {[%clk
0:00:43.3]} 41... Qxg5 {[%clk 0:00:04.4]} 42. Qxc3+ {[%clk 0:00:42.2]} 42... Kf8
{[%clk 0:00:05.9]} 43. Bd3 {[%clk 0:00:37.6]} 43... Qg2+ {[%clk 0:00:06.5]} 44.
Kb3 {[%clk 0:00:38]} 44... h5 {[%clk 0:00:06.8]} 45. a5 {[%clk 0:00:37.9]} 45...
h4 {[%clk 0:00:07.4]} 46. a6 {[%clk 0:00:38]} 46... h3 {[%clk 0:00:07.9]} 47. a7
{[%clk 0:00:35.7]} 47... h2 {[%clk 0:00:07.5]} 48. Qf6+ {[%clk 0:00:30.6]} 48...
Kg8 {[%clk 0:00:08.4]} 49. Qd8+ {[%clk 0:00:26.5]} 49... Kf7 {[%clk 0:00:06.6]}
50. a8=Q {[%clk 0:00:27.3]} 50... h1=Q {[%clk 0:00:07.1]} 51. Bc4+ {[%clk
0:00:15.4]} 51... Kg7 {[%clk 0:00:07.8]} 52. Qf8+ {[%clk 0:00:16.4]} 52... Kh7
{[%clk 0:00:09.3]} 53. Qh8# {[%clk 0:00:17.5]} 1-0

[Event "*** Titled Tuesday Blitz"]
[Site "Chess.com"]
[Date "2019.12.03"]
[Round "10"]
[White "Philosopherrr"]
[Black "francyIM"]
[Result "0-1"]
[WhiteElo "2460"]
[BlackElo "2601"]
[TimeControl "180+2"]
[EndTime "15:20:11 PST"]
[Termination "francyIM won by resignation"]

1. e4 {[%clk 0:03:01.9]} 1... c6 {[%clk 0:02:59.9]} 2. d4 {[%clk 0:03:02.7]}
2... d5 {[%clk 0:02:59.9]} 3. exd5 {[%clk 0:03:04.6]} 3... cxd5 {[%clk
0:03:00.6]} 4. c4 {[%clk 0:03:06.5]} 4... Nf6 {[%clk 0:03:01]} 5. Nc3 {[%clk
0:03:07.9]} 5... g6 {[%clk 0:03:02.4]} 6. Nf3 {[%clk 0:03:00.9]} 6... Bg7 {[%clk
0:03:03.5]} 7. cxd5 {[%clk 0:03:02.2]} 7... Nxd5 {[%clk 0:03:01.4]} 8. Bb5+
{[%clk 0:03:03.1]} 8... Bd7 {[%clk 0:03:01.7]} 9. Qe2 {[%clk 0:03:03.6]} 9...
Nxc3 {[%clk 0:03:01.2]} 10. bxc3 {[%clk 0:03:04]} 10... Bxb5 {[%clk 0:02:59.6]}
11. Qxb5+ {[%clk 0:03:04.4]} 11... Qd7 {[%clk 0:03:01.3]} 12. a4 {[%clk
0:03:04]} 12... Nc6 {[%clk 0:02:58.6]} 13. O-O {[%clk 0:03:00.3]} 13... O-O
{[%clk 0:02:58.8]} 14. Re1 {[%clk 0:02:59.2]} 14... e6 {[%clk 0:02:57.5]} 15.
Rb1 {[%clk 0:02:59.1]} 15... b6 {[%clk 0:02:55.9]} 16. Ba3 {[%clk 0:02:52]}
16... Rfd8 {[%clk 0:02:54.5]} 17. Qa6 {[%clk 0:02:06.3]} 17... Rac8 {[%clk
0:02:49.2]} 18. Red1 {[%clk 0:01:58.8]} 18... Na5 {[%clk 0:02:47.2]} 19. Bb4
{[%clk 0:01:57.5]} 19... Nc4 {[%clk 0:02:46.4]} 20. a5 {[%clk 0:01:53.9]} 20...
Qd5 {[%clk 0:02:43.5]} 21. axb6 {[%clk 0:01:48.7]} 21... axb6 {[%clk 0:02:45.4]}
22. Qa2 {[%clk 0:01:49.2]} 22... h6 {[%clk 0:02:42.7]} 23. Ra1 {[%clk
0:01:46.1]} 23... Kh7 {[%clk 0:02:41.5]} 24. Qe2 {[%clk 0:01:44.7]} 24... Rd7
{[%clk 0:02:40.2]} 25. h4 {[%clk 0:01:41.8]} 25... Rdc7 {[%clk 0:02:37.3]} 26.
Qd3 {[%clk 0:01:37.6]} 26... Nd6 {[%clk 0:02:34.9]} 27. h5 {[%clk 0:01:35.7]}
27... Ne4 {[%clk 0:02:28.8]} 28. hxg6+ {[%clk 0:01:36]} 28... fxg6 {[%clk
0:02:30.7]} 29. Rac1 {[%clk 0:01:26.6]} 29... Rc4 {[%clk 0:02:30.9]} 30. Nh4
{[%clk 0:01:25]} 30... Bf6 {[%clk 0:02:21.9]} 31. Nxg6 {[%clk 0:01:25.3]} 31...
Qf5 {[%clk 0:02:16]} 32. f3 {[%clk 0:01:00.2]} 32... Ng3 {[%clk 0:02:01]} 33.
Nf8+ {[%clk 0:00:54.6]} 33... Kg7 {[%clk 0:01:58.6]} 34. Qxf5 {[%clk 0:00:54.4]}
34... exf5 {[%clk 0:01:58.9]} 35. Ne6+ {[%clk 0:00:54.1]} 35... Kf7 {[%clk
0:01:59.8]} 36. Kf2 {[%clk 0:00:50.2]} 36... Nh5 {[%clk 0:01:56.1]} 37. d5
{[%clk 0:00:49.6]} 37... Bh4+ {[%clk 0:01:51.2]} 38. Ke2 {[%clk 0:00:45.4]}
38... Bf6 {[%clk 0:01:47.2]} 39. Kd3 {[%clk 0:00:41.5]} 39... b5 {[%clk
0:01:44.6]} 40. Rh1 {[%clk 0:00:41.1]} 40... Nf4+ {[%clk 0:01:31.5]} 41. Nxf4
{[%clk 0:00:40]} 41... Rxf4 {[%clk 0:01:33.4]} 42. Rxh6 {[%clk 0:00:38.3]} 42...
Rxb4 {[%clk 0:01:34.1]} 43. Rh7+ {[%clk 0:00:31.2]} 43... Kg6 {[%clk 0:01:33.3]}
44. cxb4 {[%clk 0:00:26.2]} 44... Rxc1 {[%clk 0:01:35.2]} 45. Rb7 {[%clk
0:00:26]} 45... Rd1+ {[%clk 0:01:35.4]} 46. Ke3 {[%clk 0:00:22.1]} 46... Rxd5
{[%clk 0:01:36]} 47. g4 {[%clk 0:00:21.3]} 47... Bg5+ {[%clk 0:01:27.3]} 48. f4
{[%clk 0:00:21]} 48... Bf6 {[%clk 0:01:28.3]} 49. g5 {[%clk 0:00:22.1]} 49...
Bc3 {[%clk 0:01:29.4]} 50. Rb6+ {[%clk 0:00:23]} 50... Kh5 {[%clk 0:01:28.7]}
51. Kf3 {[%clk 0:00:23.2]} 51... Rd3+ {[%clk 0:01:22.8]} 52. Ke2 {[%clk
0:00:24.4]} 52... Rd4 {[%clk 0:01:22.8]} 53. Kf3 {[%clk 0:00:24.8]} 53... Rd3+
{[%clk 0:01:16.5]} 54. Ke2 {[%clk 0:00:25.3]} 54... Rd2+ {[%clk 0:01:17.3]} 55.
Kf3 {[%clk 0:00:26.2]} 55... Bg7 {[%clk 0:01:17.5]} 56. Rxb5 {[%clk 0:00:25.8]}
56... Kg6 {[%clk 0:01:13]} 57. Rb6+ {[%clk 0:00:26.3]} 57... Kf7 {[%clk
0:01:14]} 58. Rb7+ {[%clk 0:00:24.8]} 58... Kg8 {[%clk 0:01:14.9]} 59. b5 {[%clk
0:00:25.3]} 59... Rd3+ {[%clk 0:01:14]} 60. Ke2 {[%clk 0:00:26]} 60... Rb3
{[%clk 0:01:14.9]} 61. b6 {[%clk 0:00:24.1]} 61... Bf8 {[%clk 0:01:16]} 62. Rb8
{[%clk 0:00:23.8]} 62... Kg7 {[%clk 0:01:16.2]} 63. Kd2 {[%clk 0:00:23.5]} 63...
Bd6 {[%clk 0:01:15.8]} 64. Rb7+ {[%clk 0:00:22.4]} 64... Kg6 {[%clk 0:01:16]}
65. Kc2 {[%clk 0:00:23.8]} 65... Rb5 {[%clk 0:01:16.7]} 66. Kc3 {[%clk
0:00:20.9]} 66... Bxf4 {[%clk 0:01:18]} 67. Kc4 {[%clk 0:00:21.5]} 67... Rb1
{[%clk 0:01:19.3]} 68. Kc5 {[%clk 0:00:20]} 68... Be3+ {[%clk 0:01:20.3]} 69.
Kc6 {[%clk 0:00:21.1]} 69... Rxb6+ {[%clk 0:01:21.9]} 70. Rxb6 {[%clk
0:00:22.1]} 70... Bxb6 {[%clk 0:01:23.8]} 71. Kd5 {[%clk 0:00:23.8]} 71... Kxg5
{[%clk 0:01:24.1]} 72. Kc4 {[%clk 0:00:24.7]} 72... f4 {[%clk 0:01:24.5]} 73.
Kd3 {[%clk 0:00:26.6]} 0-1

[Event "*** Titled Tuesday Blitz"]
[Site "Chess.com"]
[Date "2019.12.03"]
[Round "10"]
[White "Bad4life"]
[Black "CzechmVIII"]
[Result "1/2-1/2"]
[WhiteElo "2375"]
[BlackElo "2147"]
[TimeControl "180+2"]
[EndTime "15:20:11 PST"]
[Termination "Game drawn by repetition"]

1. e4 {[%clk 0:02:19.6]} 1... c5 {[%clk 0:02:59.7]} 2. Nf3 {[%clk 0:02:20.6]}
2... d6 {[%clk 0:03:00.8]} 3. Bb5+ {[%clk 0:02:21.6]} 3... Nd7 {[%clk
0:03:00.9]} 4. Ba4 {[%clk 0:02:22.5]} 4... Nf6 {[%clk 0:02:53.7]} 5. O-O {[%clk
0:02:23.3]} 5... e5 {[%clk 0:02:51.6]} 6. c3 {[%clk 0:02:24]} 6... Be7 {[%clk
0:02:50.6]} 7. d4 {[%clk 0:02:24.8]} 7... cxd4 {[%clk 0:02:45.1]} 8. cxd4 {[%clk
0:02:25.6]} 8... O-O {[%clk 0:02:45.3]} 9. Nc3 {[%clk 0:02:22.8]} 9... exd4
{[%clk 0:02:41.8]} 10. Qxd4 {[%clk 0:02:21.6]} 10... Nc5 {[%clk 0:02:38.1]} 11.
Bc2 {[%clk 0:02:21.9]} 11... Bg4 {[%clk 0:02:22.2]} 12. Kh1 {[%clk 0:02:16.7]}
12... Ne6 {[%clk 0:02:07]} 13. Qa4 {[%clk 0:02:10.9]} 13... a6 {[%clk
0:02:01.5]} 14. e5 {[%clk 0:02:03]} 14... dxe5 {[%clk 0:01:57.6]} 15. Nxe5
{[%clk 0:02:02.9]} 15... Nc5 {[%clk 0:01:38.6]} 16. Bxh7+ {[%clk 0:01:51.4]}
16... Kxh7 {[%clk 0:01:28.4]} 17. Qc2+ {[%clk 0:01:49.9]} 17... Kg8 {[%clk
0:01:25.3]} 18. Nxg4 {[%clk 0:01:41.4]} 18... Nxg4 {[%clk 0:01:24.3]} 19. Qf5
{[%clk 0:01:42.6]} 19... Qd7 {[%clk 0:01:09.3]} 20. Nd5 {[%clk 0:01:43.7]} 20...
Bd6 {[%clk 0:00:53]} 21. Qg5 {[%clk 0:01:29.8]} 21... f6 {[%clk 0:00:44.7]} 22.
Qh4 {[%clk 0:01:10.9]} 22... Nxh2 {[%clk 0:00:31]} 23. Nb6 {[%clk 0:00:55.2]}
23... Qe6 {[%clk 0:00:19]} 24. Rd1 {[%clk 0:00:34.8]} 24... Rae8 {[%clk
0:00:16.9]} 25. Be3 {[%clk 0:00:31.9]} 25... Ng4 {[%clk 0:00:13.8]} 26. Rxd6
{[%clk 0:00:21.5]} 26... Qxd6 {[%clk 0:00:14.8]} 27. Qxg4 {[%clk 0:00:22.8]}
27... Qxb6 {[%clk 0:00:12.9]} 28. Qc4+ {[%clk 0:00:24]} 28... Qe6 {[%clk
0:00:11.9]} 29. Qxc5 {[%clk 0:00:25]} 29... Rd8 {[%clk 0:00:11.7]} 30. Re1
{[%clk 0:00:21.1]} 30... Rd5 {[%clk 0:00:12.2]} 31. Qb4 {[%clk 0:00:19]} 31...
Rh5+ {[%clk 0:00:12.6]} 32. Kg1 {[%clk 0:00:20.5]} 32... Qf5 {[%clk 0:00:12.6]}
33. Qb3+ {[%clk 0:00:20.6]} 33... Kh8 {[%clk 0:00:12.6]} 34. Qxb7 {[%clk
0:00:21.7]} 34... Qh7 {[%clk 0:00:13.5]} 35. g3 {[%clk 0:00:22.8]} 35... Rd8
{[%clk 0:00:11.7]} 36. Qg2 {[%clk 0:00:23.6]} 36... Rhd5 {[%clk 0:00:12.3]} 37.
Qf3 {[%clk 0:00:23.4]} 37... Qc2 {[%clk 0:00:11.3]} 38. Kg2 {[%clk 0:00:20]}
38... Qg6 {[%clk 0:00:09.2]} 39. Rh1+ {[%clk 0:00:20.3]} 39... Kg8 {[%clk
0:00:09.6]} 40. Rh4 {[%clk 0:00:20.9]} 40... Qf5 {[%clk 0:00:07.5]} 41. Rf4
{[%clk 0:00:21.6]} 41... Qe6 {[%clk 0:00:08.9]} 42. Re4 {[%clk 0:00:22.7]} 42...
Qc6 {[%clk 0:00:09.8]} 43. b3 {[%clk 0:00:21.8]} 43... Qa8 {[%clk 0:00:10.2]}
44. Bf4 {[%clk 0:00:21.3]} 44... R5d7 {[%clk 0:00:11.2]} 45. Qe2 {[%clk
0:00:19.1]} 45... Re8 {[%clk 0:00:10]} 46. Qc4+ {[%clk 0:00:18.9]} 46... Kh8
{[%clk 0:00:08.5]} 47. f3 {[%clk 0:00:19]} 47... Rxe4 {[%clk 0:00:09.6]} 48.
fxe4 {[%clk 0:00:20.5]} 48... Re7 {[%clk 0:00:10.2]} 49. Kf3 {[%clk 0:00:21.5]}
49... Qe8 {[%clk 0:00:11.3]} 50. Qd3 {[%clk 0:00:20.1]} 50... Re6 {[%clk
0:00:11.7]} 51. g4 {[%clk 0:00:20]} 51... Qe7 {[%clk 0:00:12.8]} 52. Be3 {[%clk
0:00:18.6]} 52... Rc6 {[%clk 0:00:13.4]} 53. Qd5 {[%clk 0:00:19.1]} 53... Re6
{[%clk 0:00:13.2]} 54. Qh5+ {[%clk 0:00:20.1]} 54... Kg8 {[%clk 0:00:13.9]} 55.
Qd5 {[%clk 0:00:21.3]} 55... Kh8 {[%clk 0:00:14.6]} 56. Qh5+ {[%clk 0:00:22]}
56... Kg8 {[%clk 0:00:16]} 57. Qd5 {[%clk 0:00:23.3]} 57... Kh8 {[%clk
0:00:13.6]} 1/2-1/2

[Event "*** Titled Tuesday Blitz"]
[Site "Chess.com"]
[Date "2019.12.03"]
[Round "10"]
[White "NemtsevIgor"]
[Black "Witik"]
[Result "0-1"]
[WhiteElo "2325"]
[BlackElo "2566"]
[TimeControl "180+2"]
[EndTime "15:20:17 PST"]
[Termination "Witik won by resignation"]

1. d4 {[%clk 0:03:01.9]} 1... Nf6 {[%clk 0:02:57.9]} 2. Bf4 {[%clk 0:03:02.5]}
2... d5 {[%clk 0:02:53.9]} 3. e3 {[%clk 0:03:03.6]} 3... c5 {[%clk 0:02:54.8]}
4. c3 {[%clk 0:03:04.6]} 4... Nc6 {[%clk 0:02:56.1]} 5. Nd2 {[%clk 0:03:04.6]}
5... Qb6 {[%clk 0:02:56.4]} 6. Qb3 {[%clk 0:03:04.8]} 6... c4 {[%clk 0:02:57.5]}
7. Qc2 {[%clk 0:03:05.2]} 7... Nh5 {[%clk 0:02:58.3]} 8. Bg3 {[%clk 0:02:50.4]}
8... g6 {[%clk 0:02:56.1]} 9. Ngf3 {[%clk 0:02:48.4]} 9... Bg7 {[%clk
0:02:52.3]} 10. Be2 {[%clk 0:02:48]} 10... O-O {[%clk 0:02:42.1]} 11. O-O {[%clk
0:02:47.9]} 11... Bf5 {[%clk 0:02:23.1]} 12. Qc1 {[%clk 0:02:46.9]} 12... Nxg3
{[%clk 0:02:08.7]} 13. hxg3 {[%clk 0:02:47.3]} 13... Rac8 {[%clk 0:02:02.9]} 14.
Nh4 {[%clk 0:02:43.8]} 14... Bd7 {[%clk 0:02:02.8]} 15. e4 {[%clk 0:02:42.1]}
15... e6 {[%clk 0:01:38.7]} 16. Nhf3 {[%clk 0:02:31.3]} 16... Qd8 {[%clk
0:01:21.1]} 17. Re1 {[%clk 0:02:29.9]} 17... b5 {[%clk 0:01:21.1]} 18. a3 {[%clk
0:02:29.7]} 18... a5 {[%clk 0:01:14.7]} 19. Bd1 {[%clk 0:02:21.9]} 19... b4
{[%clk 0:01:14.3]} 20. axb4 {[%clk 0:02:22.3]} 20... axb4 {[%clk 0:01:16.2]} 21.
Ba4 {[%clk 0:02:20.6]} 21... Qb6 {[%clk 0:01:02.7]} 22. exd5 {[%clk 0:02:09.8]}
22... exd5 {[%clk 0:01:03.7]} 23. Bxc6 {[%clk 0:02:09.9]} 23... Bxc6 {[%clk
0:01:02.6]} 24. Ne5 {[%clk 0:02:11]} 24... Bb5 {[%clk 0:01:01.9]} 25. Qd1 {[%clk
0:02:00.4]} 25... f6 {[%clk 0:00:55.7]} 26. Ng4 {[%clk 0:01:58.3]} 26... Rce8
{[%clk 0:00:43.6]} 27. Ne3 {[%clk 0:01:55.3]} 27... Bc6 {[%clk 0:00:43.9]} 28.
Qf3 {[%clk 0:01:51.9]} 28... Qb7 {[%clk 0:00:44.8]} 29. g4 {[%clk 0:01:43]}
29... Bh6 {[%clk 0:00:45.3]} 30. Ndf1 {[%clk 0:01:43.6]} 30... Bg5 {[%clk
0:00:43.4]} 31. Ra5 {[%clk 0:01:38.8]} 31... bxc3 {[%clk 0:00:41.4]} 32. bxc3
{[%clk 0:01:39.6]} 32... Qb2 {[%clk 0:00:33.1]} 33. Rd1 {[%clk 0:01:16.6]} 33...
Qxc3 {[%clk 0:00:32.4]} 34. Rc5 {[%clk 0:01:12.4]} 34... Ba8 {[%clk 0:00:27.6]}
35. Nxd5 {[%clk 0:01:11.2]} 35... Qxf3 {[%clk 0:00:27.7]} 36. gxf3 {[%clk
0:01:12.2]} 36... Rd8 {[%clk 0:00:25.1]} 37. Nfe3 {[%clk 0:01:07.4]} 37... Bxe3
{[%clk 0:00:25.6]} 38. Nxe3 {[%clk 0:01:07.9]} 38... Bxf3 {[%clk 0:00:27.1]} 39.
Rc1 {[%clk 0:01:05.5]} 39... Rxd4 {[%clk 0:00:27.4]} 40. R5xc4 {[%clk
0:01:05.7]} 40... Rfd8 {[%clk 0:00:27.6]} 41. Rxd4 {[%clk 0:01:06.4]} 41... Rxd4
{[%clk 0:00:29.5]} 42. Rc8+ {[%clk 0:00:55.1]} 42... Kg7 {[%clk 0:00:28.6]} 43.
Rc7+ {[%clk 0:00:56.7]} 43... Kh6 {[%clk 0:00:28]} 44. Kh2 {[%clk 0:00:54.4]}
44... Bxg4 {[%clk 0:00:27.3]} 45. Kg3 {[%clk 0:00:55.6]} 45... Be6 {[%clk
0:00:22.7]} 46. Rc6 {[%clk 0:00:54]} 46... Re4 {[%clk 0:00:21.5]} 47. Rd6 {[%clk
0:00:52.8]} 47... f5 {[%clk 0:00:21.5]} 48. Kf3 {[%clk 0:00:53.2]} 48... Kg5
{[%clk 0:00:21.9]} 49. Rd8 {[%clk 0:00:51.5]} 49... h5 {[%clk 0:00:22.2]} 50.
Ng2 {[%clk 0:00:48.2]} 50... h4 {[%clk 0:00:22.9]} 51. Ne3 {[%clk 0:00:49]}
51... h3 {[%clk 0:00:19]} 52. Rh8 {[%clk 0:00:49.2]} 52... Rh4 {[%clk
0:00:19.9]} 53. Rxh4 {[%clk 0:00:45.6]} 53... Kxh4 {[%clk 0:00:20.8]} 54. Nf1
{[%clk 0:00:46.4]} 54... g5 {[%clk 0:00:17.5]} 55. Nh2 {[%clk 0:00:47]} 55...
Bd5+ {[%clk 0:00:17.8]} 56. Ke3 {[%clk 0:00:46.9]} 56... Bg2 {[%clk 0:00:17.3]}
57. Ke2 {[%clk 0:00:40.5]} 57... g4 {[%clk 0:00:17.3]} 58. Ke3 {[%clk
0:00:41.3]} 58... Kg5 {[%clk 0:00:18.5]} 59. f4+ {[%clk 0:00:41.6]} 59... Kh4
{[%clk 0:00:17.9]} 60. Kf2 {[%clk 0:00:42.3]} 60... g3+ {[%clk 0:00:19]} 61. Kg1
{[%clk 0:00:43.7]} 61... gxh2+ {[%clk 0:00:20.1]} 62. Kxh2 {[%clk 0:00:45.2]}
62... Kg4 {[%clk 0:00:21]} 0-1

[Event "*** Titled Tuesday Blitz"]
[Site "Chess.com"]
[Date "2019.12.03"]
[Round "10"]
[White "chessdjw"]
[Black "HarutyunianTigranK"]
[Result "0-1"]
[WhiteElo "2673"]
[BlackElo "2773"]
[TimeControl "180+2"]
[EndTime "15:20:20 PST"]
[Termination "HarutyunianTigranK won by checkmate"]

1. c4 {[%clk 0:03:01.9]} 1... e5 {[%clk 0:02:56.9]} 2. Nc3 {[%clk 0:03:02.6]}
2... Nf6 {[%clk 0:02:56]} 3. Nf3 {[%clk 0:03:03.1]} 3... Nc6 {[%clk 0:02:54.3]}
4. g3 {[%clk 0:03:04.1]} 4... d5 {[%clk 0:02:53.4]} 5. cxd5 {[%clk 0:03:04.9]}
5... Nxd5 {[%clk 0:02:55]} 6. Bg2 {[%clk 0:03:06.1]} 6... Nb6 {[%clk 0:02:55.6]}
7. O-O {[%clk 0:03:06.7]} 7... Be7 {[%clk 0:02:56.7]} 8. d3 {[%clk 0:03:07.1]}
8... O-O {[%clk 0:02:57.5]} 9. Be3 {[%clk 0:03:08.1]} 9... Re8 {[%clk
0:02:57.7]} 10. Rc1 {[%clk 0:03:08.9]} 10... Bf8 {[%clk 0:02:58.6]} 11. Bg5
{[%clk 0:03:09.8]} 11... f6 {[%clk 0:02:39.4]} 12. Be3 {[%clk 0:03:10.1]} 12...
Bg4 {[%clk 0:02:25.8]} 13. Ne4 {[%clk 0:02:48.3]} 13... Qd7 {[%clk 0:02:20.3]}
14. Bc5 {[%clk 0:02:44.7]} 14... f5 {[%clk 0:01:43.7]} 15. Neg5 {[%clk
0:02:08.4]} 15... g6 {[%clk 0:01:24.6]} 16. Qb3+ {[%clk 0:01:55.1]} 16... Kh8
{[%clk 0:01:20.6]} 17. Bxf8 {[%clk 0:01:09.5]} 17... Rxf8 {[%clk 0:01:20.6]} 18.
Rxc6 {[%clk 0:00:56.8]} 18... bxc6 {[%clk 0:01:14.2]} 19. Nxe5 {[%clk
0:00:57.2]} 19... Qe7 {[%clk 0:01:15]} 20. Qc3 {[%clk 0:00:36.9]} 20... Qf6
{[%clk 0:01:06.3]} 21. Ne6 {[%clk 0:00:05.2]} 21... Na4 {[%clk 0:00:38]} 22. Qd4
{[%clk 0:00:05.7]} 22... c5 {[%clk 0:00:36.5]} 23. Qxa4 {[%clk 0:00:06.1]} 23...
Qxe6 {[%clk 0:00:35.4]} 24. Bxa8 {[%clk 0:00:04.5]} 24... Qxe5 {[%clk
0:00:31.2]} 25. Bf3 {[%clk 0:00:03.6]} 25... Bxf3 {[%clk 0:00:25.8]} 26. exf3
{[%clk 0:00:05.5]} 26... Qxb2 {[%clk 0:00:25]} 27. Qc6 {[%clk 0:00:06.4]} 27...
Qb6 {[%clk 0:00:23.3]} 28. Qd7 {[%clk 0:00:06.3]} 28... Qd6 {[%clk 0:00:23.9]}
29. Qxd6 {[%clk 0:00:07.1]} 29... cxd6 {[%clk 0:00:24.4]} 30. Rb1 {[%clk
0:00:08.8]} 30... Rf7 {[%clk 0:00:25]} 31. f4 {[%clk 0:00:09]} 31... Re7 {[%clk
0:00:25.3]} 32. Rf1 {[%clk 0:00:09.8]} 32... Re2 {[%clk 0:00:25.2]} 33. Kg2
{[%clk 0:00:11.7]} 33... Rxa2 {[%clk 0:00:25.5]} 34. Rg1 {[%clk 0:00:13.6]}
34... Rd2 {[%clk 0:00:23.8]} 35. Re1 {[%clk 0:00:13.9]} 35... Rxd3 {[%clk
0:00:24.3]} 36. Re7 {[%clk 0:00:14.9]} 36... a5 {[%clk 0:00:24]} 37. Kh3 {[%clk
0:00:15.7]} 37... c4 {[%clk 0:00:18.8]} 38. Kh4 {[%clk 0:00:16.6]} 38... h6
{[%clk 0:00:20.3]} 39. h3 {[%clk 0:00:16.1]} 39... c3 {[%clk 0:00:21.7]} 40. g4
{[%clk 0:00:17.4]} 40... fxg4 {[%clk 0:00:21.2]} 41. hxg4 {[%clk 0:00:17.9]}
41... Rd5 {[%clk 0:00:22.8]} 42. f5 {[%clk 0:00:17.8]} 42... gxf5 {[%clk
0:00:23.3]} 43. Kh5 {[%clk 0:00:19]} 43... fxg4+ {[%clk 0:00:20.5]} 44. Kg6
{[%clk 0:00:20.1]} 44... Rg5+ {[%clk 0:00:18.1]} 45. Kxh6 {[%clk 0:00:21.1]}
45... Re5 {[%clk 0:00:19.3]} 46. Rc7 {[%clk 0:00:20.3]} 46... Rc5 {[%clk
0:00:18.4]} 47. Re7 {[%clk 0:00:08.9]} 47... Rc8 {[%clk 0:00:18.9]} 48. Re1
{[%clk 0:00:08.3]} 48... c2 {[%clk 0:00:19.5]} 49. Rc1 {[%clk 0:00:08.9]} 49...
d5 {[%clk 0:00:20.9]} 50. Kg6 {[%clk 0:00:10.8]} 50... d4 {[%clk 0:00:21.9]} 51.
Kf7 {[%clk 0:00:12.7]} 51... Rc7+ {[%clk 0:00:22.7]} 52. Kf8 {[%clk 0:00:10.6]}
52... d3 {[%clk 0:00:23.1]} 53. f4 {[%clk 0:00:09.6]} 53... d2 {[%clk 0:00:22]}
54. Rh1+ {[%clk 0:00:09.5]} 54... Rh7 {[%clk 0:00:22.9]} 55. Rg1 {[%clk
0:00:10.6]} 55... d1=Q {[%clk 0:00:23.5]} 56. Rxg4 {[%clk 0:00:12.5]} 56... Qd8#
{[%clk 0:00:23.1]} 0-1